[Event "January 9 Late 2024"]
[Site "https://www.chess.com"]
[Date "2024.01.09"]
[Round "4"]
[White "Powell, Paul"]
[Black "Slavin, Alexey"]
[Result "0-1"]
[Board "227"]
[TimeControl "180+1"]
[WhiteFideId "2005840"]
[BlackFideId "24104388"]
[WhiteElo "2055"]
[BlackElo "2287"]
[WhiteTeam "USA"]
[BlackTeam "RUS"]
[WhiteClock "0:00:03"]
[BlackClock "0:01:34"]

1. d4 {[%clk 0:03:00]}  Nc6 {[%clk 0:02:59]} 2. Nf3 {[%clk 0:02:59]}  d6 {[%clk 0:02:59]} 3. Bf4 {[%clk 0:02:59]}  Bg4 {[%clk 0:02:59]} 4. Nbd2 {[%clk 0:02:57]}  e6 {[%clk 0:02:59]} 5. h3 {[%clk 0:02:57]}  Bh5 {[%clk 0:02:59]} 6. c3 {[%clk 0:02:57]}  Nf6 {[%clk 0:02:59]} 7. Qa4 {[%clk 0:02:49]}  Be7 {[%clk 0:02:57]} 8. e3 {[%clk 0:02:49]}  O-O {[%clk 0:02:57]} 9. Bd3 {[%clk 0:02:44]}  Bg6 {[%clk 0:02:55]} 10. Qc2 {[%clk 0:02:38]}  Re8 {[%clk 0:02:52]} 11. O-O {[%clk 0:02:38]}  Bf8 {[%clk 0:02:51]} 12. Bxg6 {[%clk 0:02:37]}  hxg6 {[%clk 0:02:51]} 13. e4 {[%clk 0:02:36]}  e5 {[%clk 0:02:50]} 14. Bg5 {[%clk 0:02:25]}  Be7 {[%clk 0:02:48]} 15. d5 {[%clk 0:02:21]}  Nb8 {[%clk 0:02:48]} 16. Be3 {[%clk 0:02:06]}  Nbd7 {[%clk 0:02:46]} 17. b4 {[%clk 0:02:04]}  Rf8 {[%clk 0:02:42]} 18. Nh2 {[%clk 0:01:59]}  Nh5 {[%clk 0:02:28]} 19. g4 {[%clk 0:01:50]}  Nf4 {[%clk 0:02:28]} 20. Bxf4 {[%clk 0:01:49]}  exf4 {[%clk 0:02:28]} 21. f3 {[%clk 0:01:37]}  Ne5 {[%clk 0:02:22]} 22. Kg2 {[%clk 0:01:34]}  Bh4 {[%clk 0:02:20]} 23. Rfd1 {[%clk 0:01:24]}  g5 {[%clk 0:02:07]} 24. Nb3 {[%clk 0:01:18]}  g6 {[%clk 0:02:06]} 25. Rf1 {[%clk 0:00:57]}  Kg7 {[%clk 0:02:05]} 26. Kh1 {[%clk 0:00:39]}  Bg3 {[%clk 0:02:03]} 27. Qg2 {[%clk 0:00:35]}  Rh8 {[%clk 0:02:01]} 28. Nd4 {[%clk 0:00:29]}  Rh7 {[%clk 0:02:00]} 29. Ne2 {[%clk 0:00:29]}  Bxh2 {[%clk 0:01:59]} 30. Kxh2 {[%clk 0:00:27]}  Nc4 {[%clk 0:01:55]} 31. Rfc1 {[%clk 0:00:20]}  Ne3 {[%clk 0:01:49]} 32. Qf2 {[%clk 0:00:15]}  Rxh3+ {[%clk 0:01:39]} 33. Kg1 {[%clk 0:00:13]}  Qh8 {[%clk 0:01:38]} 34. Ng3 {[%clk 0:00:03]}  fxg3 {[%clk 0:01:34]} 0-1

[Event "January 9 Late 2024"]
[Site "https://www.chess.com"]
[Date "2024.01.09"]
[Round "4"]
[White "Veloso, Henrique Barbosa"]
[Black "Fareh, Youness"]
[Result "0-1"]
[Board "229"]
[TimeControl "180+1"]
[WhiteFideId "22784853"]
[BlackFideId "9000526"]
[WhiteElo "2274"]
[BlackElo "2020"]
[WhiteTeam "BRA"]
[BlackTeam "MAR"]
[WhiteClock "0:00:15"]
[BlackClock "0:01:23"]

1. d4 {[%clk 0:02:53]}  Nf6 {[%clk 0:02:59]} 2. c4 {[%clk 0:02:51]}  c5 {[%clk 0:02:59]} 3. d5 {[%clk 0:02:51]}  b5 {[%clk 0:02:59]} 4. cxb5 {[%clk 0:02:51]}  a6 {[%clk 0:03:00]} 5. Nc3 {[%clk 0:02:50]}  d6 {[%clk 0:02:56]} 6. e4 {[%clk 0:02:48]}  Nbd7 {[%clk 0:02:55]} 7. Nf3 {[%clk 0:02:46]}  g6 {[%clk 0:02:55]} 8. bxa6 {[%clk 0:02:47]}  Bg7 {[%clk 0:02:54]} 9. Bb5 {[%clk 0:02:45]}  O-O {[%clk 0:02:54]} 10. O-O {[%clk 0:02:44]}  Qb6 {[%clk 0:02:53]} 11. a4 {[%clk 0:02:44]}  Nb8 {[%clk 0:02:52]} 12. Re1 {[%clk 0:02:39]}  Nxa6 {[%clk 0:02:52]} 13. e5 {[%clk 0:02:37]}  Nd7 {[%clk 0:02:40]} 14. e6 {[%clk 0:02:25]}  Ne5 {[%clk 0:02:36]} 15. Nxe5 {[%clk 0:02:22]}  Bxe5 {[%clk 0:02:35]} 16. exf7+ {[%clk 0:02:21]}  Rxf7 {[%clk 0:02:35]} 17. Bh6 {[%clk 0:02:14]}  Nb4 {[%clk 0:02:34]} 18. Rxe5 {[%clk 0:01:26]}  dxe5 {[%clk 0:02:32]} 19. Qe2 {[%clk 0:01:24]}  Qf6 {[%clk 0:02:23]} 20. Be8 {[%clk 0:01:15]}  Bf5 {[%clk 0:02:11]} 21. Bxf7+ {[%clk 0:01:12]}  Kxf7 {[%clk 0:02:12]} 22. Qc4 {[%clk 0:00:45]}  Nc2 {[%clk 0:01:47]} 23. Rc1 {[%clk 0:00:36]}  Nd4 {[%clk 0:01:45]} 24. Be3 {[%clk 0:00:31]}  Rb8 {[%clk 0:01:36]} 25. Ne4 {[%clk 0:00:28]}  Bxe4 {[%clk 0:01:33]} 26. Bxd4 {[%clk 0:00:22]}  exd4 {[%clk 0:01:31]} 27. Qxc5 {[%clk 0:00:20]}  Rxb2 {[%clk 0:01:28]} 28. f3 {[%clk 0:00:15]}  Rxg2+ {[%clk 0:01:24]} 29. Kxg2 {[%clk 0:00:14]}  Qxf3+ {[%clk 0:01:24]} 30. Kg1 {[%clk 0:00:15]}  Qg2# {[%clk 0:01:23]} 0-1

[Event "January 9 Late 2024"]
[Site "https://www.chess.com"]
[Date "2024.01.09"]
[Round "4"]
[White "Smirnov, Timofey"]
[Black "Romero Ruscalleda, Josep"]
[Result "0-1"]
[Board "232"]
[TimeControl "180+1"]
[WhiteFideId "24176427"]
[BlackFideId "2231859"]
[WhiteElo "1988"]
[BlackElo "2258"]
[WhiteTeam "RUS"]
[BlackTeam "ESP"]
[WhiteClock "0:00:00"]
[BlackClock "0:00:36"]

1. e4 {[%clk 0:03:00]}  g6 {[%clk 0:03:00]} 2. d4 {[%clk 0:03:00]}  Bg7 {[%clk 0:03:01]} 3. Nc3 {[%clk 0:02:59]}  d6 {[%clk 0:03:01]} 4. Bf4 {[%clk 0:02:59]}  Nc6 {[%clk 0:03:00]} 5. Nf3 {[%clk 0:02:56]}  Bg4 {[%clk 0:02:58]} 6. d5 {[%clk 0:02:41]}  Nd4 {[%clk 0:02:57]} 7. Be2 {[%clk 0:02:34]}  Nxe2 {[%clk 0:02:57]} 8. Qxe2 {[%clk 0:02:32]}  Nf6 {[%clk 0:02:57]} 9. h3 {[%clk 0:02:30]}  Bd7 {[%clk 0:02:55]} 10. O-O {[%clk 0:02:25]}  O-O {[%clk 0:02:53]} 11. e5 {[%clk 0:02:23]}  dxe5 {[%clk 0:02:49]} 12. Nxe5 {[%clk 0:02:19]}  Bf5 {[%clk 0:02:49]} 13. Rad1 {[%clk 0:02:02]}  a6 {[%clk 0:02:42]} 14. Rfe1 {[%clk 0:01:58]}  Re8 {[%clk 0:02:41]} 15. Nc4 {[%clk 0:01:31]}  Nd7 {[%clk 0:02:31]} 16. Rd2 {[%clk 0:01:05]}  Nc5 {[%clk 0:02:10]} 17. Qe3 {[%clk 0:01:03]}  b6 {[%clk 0:02:06]} 18. Ne5 {[%clk 0:00:56]}  Bd7 {[%clk 0:01:48]} 19. Bh6 {[%clk 0:00:47]}  Nb7 {[%clk 0:01:32]} 20. Bxg7 {[%clk 0:00:45]}  Kxg7 {[%clk 0:01:32]} 21. Qd4 {[%clk 0:00:41]}  f6 {[%clk 0:01:30]} 22. Ng4 {[%clk 0:00:35]}  Bxg4 {[%clk 0:01:29]} 23. Qxg4 {[%clk 0:00:35]}  Nd6 {[%clk 0:01:28]} 24. Re6 {[%clk 0:00:31]}  Nc4 {[%clk 0:01:16]} 25. Rde2 {[%clk 0:00:29]}  Ne5 {[%clk 0:01:15]} 26. Qe4 {[%clk 0:00:22]}  Kf7 {[%clk 0:01:07]} 27. f4 {[%clk 0:00:22]}  Nd7 {[%clk 0:01:07]} 28. f5 {[%clk 0:00:17]}  Nc5 {[%clk 0:01:03]} 29. Qg4 {[%clk 0:00:07]}  Nxe6 {[%clk 0:01:03]} 30. dxe6+ {[%clk 0:00:06]}  Kg7 {[%clk 0:01:03]} 31. fxg6 {[%clk 0:00:06]}  hxg6 {[%clk 0:01:03]} 32. h4 {[%clk 0:00:06]}  Rh8 {[%clk 0:01:02]} 33. g3 {[%clk 0:00:06]}  c5 {[%clk 0:00:55]} 34. Qf4 {[%clk 0:00:05]}  Qd4+ {[%clk 0:00:55]} 35. Qxd4 {[%clk 0:00:03]}  cxd4 {[%clk 0:00:55]} 36. Nd5 {[%clk 0:00:04]}  Ra7 {[%clk 0:00:52]} 37. Nxb6 {[%clk 0:00:04]}  Rb8 {[%clk 0:00:51]} 38. Nd7 {[%clk 0:00:04]}  Rxb2 {[%clk 0:00:50]} 39. Rd2 {[%clk 0:00:04]}  Rxa2 {[%clk 0:00:47]} 40. Rxd4 {[%clk 0:00:03]}  Rxc2 {[%clk 0:00:47]} 41. Rb4 {[%clk 0:00:01]}  a5 {[%clk 0:00:46]} 42. Rb8 {[%clk 0:00:01]}  a4 {[%clk 0:00:41]} 43. Re8 {[%clk 0:00:02]}  a3 {[%clk 0:00:38]} 44. Rxe7+ {[%clk 0:00:02]}  Kh6 {[%clk 0:00:37]} 45. Rf7 {[%clk 0:00:00]}  a2 {[%clk 0:00:36]} 0-1

[Event "January 9 Late 2024"]
[Site "https://www.chess.com"]
[Date "2024.01.09"]
[Round "5"]
[White "Hakobyan, Aram"]
[Black "Nepomniachtchi, Ian"]
[Result "0-1"]
[Board "3"]
[TimeControl "180+1"]
[WhiteFideId "13306677"]
[BlackFideId "4168119"]
[WhiteElo "3010"]
[BlackElo "3124"]
[WhiteTeam "ARM"]
[BlackTeam "RUS"]
[WhiteClock "0:00:00"]
[BlackClock "0:00:36"]

1. e4 {[%clk 0:03:00]}  e5 {[%clk 0:02:58]} 2. Nf3 {[%clk 0:03:01]}  Nf6 {[%clk 0:02:58]} 3. Nc3 {[%clk 0:03:02]}  Nc6 {[%clk 0:02:57]} 4. Nd5 {[%clk 0:03:02]}  d6 {[%clk 0:02:51]} 5. d4 {[%clk 0:03:02]}  exd4 {[%clk 0:02:19]} 6. Nxd4 {[%clk 0:03:01]}  Bd7 {[%clk 0:02:17]} 7. Bc4 {[%clk 0:02:49]}  Ne5 {[%clk 0:02:12]} 8. Bb3 {[%clk 0:02:44]}  Nxd5 {[%clk 0:02:12]} 9. exd5 {[%clk 0:02:39]}  Be7 {[%clk 0:02:12]} 10. O-O {[%clk 0:02:37]}  O-O {[%clk 0:02:12]} 11. h3 {[%clk 0:02:33]}  Bf6 {[%clk 0:02:09]} 12. Re1 {[%clk 0:02:28]}  Re8 {[%clk 0:02:09]} 13. c3 {[%clk 0:02:22]}  Ng6 {[%clk 0:02:08]} 14. Be3 {[%clk 0:02:13]}  Nh4 {[%clk 0:02:04]} 15. Bc2 {[%clk 0:01:44]}  Bxd4 {[%clk 0:02:04]} 16. Qxd4 {[%clk 0:01:45]}  Bxh3 {[%clk 0:02:01]} 17. Bh6 {[%clk 0:01:46]}  Rxe1+ {[%clk 0:01:54]} 18. Rxe1 {[%clk 0:01:44]}  gxh6 {[%clk 0:01:54]} 19. Re3 {[%clk 0:00:57]}  Bf5 {[%clk 0:01:52]} 20. Ba4 {[%clk 0:00:57]}  Ng6 {[%clk 0:00:57]} 21. Re8+ {[%clk 0:00:57]}  Qxe8 {[%clk 0:00:57]} 22. Bxe8 {[%clk 0:00:58]}  Rxe8 {[%clk 0:00:57]} 23. Qxa7 {[%clk 0:00:58]}  Re1+ {[%clk 0:00:54]} 24. Kh2 {[%clk 0:00:59]}  Re2 {[%clk 0:00:54]} 25. Qxb7 {[%clk 0:00:50]}  Rxf2 {[%clk 0:00:53]} 26. Qxc7 {[%clk 0:00:22]}  Be4 {[%clk 0:00:53]} 27. Qb8+ {[%clk 0:00:18]}  Kg7 {[%clk 0:00:52]} 28. Qxd6 {[%clk 0:00:19]}  Rxg2+ {[%clk 0:00:52]} 29. Kh3 {[%clk 0:00:20]}  h5 {[%clk 0:00:44]} 30. c4 {[%clk 0:00:17]}  Rg4 {[%clk 0:00:42]} 31. Kh2 {[%clk 0:00:16]}  Rg2+ {[%clk 0:00:40]} 32. Kh3 {[%clk 0:00:15]}  h4 {[%clk 0:00:38]} 33. c5 {[%clk 0:00:08]}  h5 {[%clk 0:00:36]} 34. c6 {[%clk 0:00:00]}  Rf2 {[%clk 0:00:36]} 0-1

[Event "January 9 Late 2024"]
[Site "https://www.chess.com"]
[Date "2024.01.09"]
[Round "5"]
[White "Bortnyk, Olexandr"]
[Black "Dominguez Perez, Leinier"]
[Result "0-1"]
[Board "4"]
[TimeControl "180+1"]
[WhiteFideId "14120828"]
[BlackFideId "3503240"]
[WhiteElo "3119"]
[BlackElo "2992"]
[WhiteTeam "UKR"]
[BlackTeam "USA"]
[WhiteClock "0:00:00"]
[BlackClock "0:00:07"]

1. d4 {[%clk 0:03:00]}  Nf6 {[%clk 0:02:59]} 2. Nc3 {[%clk 0:03:01]}  d5 {[%clk 0:02:59]} 3. Bf4 {[%clk 0:03:02]}  c5 {[%clk 0:02:53]} 4. e4 {[%clk 0:03:02]}  Nxe4 {[%clk 0:02:49]} 5. Nxe4 {[%clk 0:03:02]}  dxe4 {[%clk 0:02:49]} 6. dxc5 {[%clk 0:03:03]}  Qa5+ {[%clk 0:02:49]} 7. c3 {[%clk 0:03:03]}  Qxc5 {[%clk 0:02:47]} 8. Qa4+ {[%clk 0:03:03]}  Nc6 {[%clk 0:02:47]} 9. Qxe4 {[%clk 0:03:04]}  g6 {[%clk 0:02:46]} 10. Nf3 {[%clk 0:03:04]}  Bg7 {[%clk 0:02:46]} 11. Rd1 {[%clk 0:03:04]}  Bf5 {[%clk 0:02:40]} 12. Qa4 {[%clk 0:03:04]}  O-O {[%clk 0:02:27]} 13. Be3 {[%clk 0:03:04]}  Qa5 {[%clk 0:02:26]} 14. Bb5 {[%clk 0:03:02]}  Qxa4 {[%clk 0:02:24]} 15. Bxa4 {[%clk 0:03:02]}  Rfd8 {[%clk 0:02:02]} 16. O-O {[%clk 0:02:59]}  Bd3 {[%clk 0:01:56]} 17. Rfe1 {[%clk 0:02:58]}  b5 {[%clk 0:01:51]} 18. Rxd3 {[%clk 0:02:53]}  bxa4 {[%clk 0:01:43]} 19. Rxd8+ {[%clk 0:02:54]}  Rxd8 {[%clk 0:01:43]} 20. Bc5 {[%clk 0:02:50]}  e5 {[%clk 0:01:36]} 21. Kf1 {[%clk 0:02:49]}  f5 {[%clk 0:01:34]} 22. Ke2 {[%clk 0:02:35]}  e4 {[%clk 0:01:34]} 23. Nd2 {[%clk 0:02:30]}  Ne5 {[%clk 0:01:33]} 24. Rb1 {[%clk 0:02:00]}  Bh6 {[%clk 0:01:20]} 25. Nf1 {[%clk 0:01:50]}  Nd3 {[%clk 0:01:10]} 26. Be3 {[%clk 0:01:50]}  Bxe3 {[%clk 0:00:28]} 27. Nxe3 {[%clk 0:01:40]}  Nf4+ {[%clk 0:00:28]} 28. Ke1 {[%clk 0:01:39]}  Nd3+ {[%clk 0:00:28]} 29. Kf1 {[%clk 0:01:34]}  Kf7 {[%clk 0:00:28]} 30. b3 {[%clk 0:01:28]}  Rb8 {[%clk 0:00:27]} 31. Ke2 {[%clk 0:01:25]}  Ke6 {[%clk 0:00:24]} 32. Nc2 {[%clk 0:01:09]}  Nf4+ {[%clk 0:00:23]} 33. Kf1 {[%clk 0:01:09]}  Ke5 {[%clk 0:00:21]} 34. Nb4 {[%clk 0:01:04]}  Rc8 {[%clk 0:00:20]} 35. c4 {[%clk 0:00:56]}  Nd3 {[%clk 0:00:21]} 36. Nd5 {[%clk 0:00:52]}  Rb8 {[%clk 0:00:19]} 37. h4 {[%clk 0:00:46]}  Kd4 {[%clk 0:00:19]} 38. g3 {[%clk 0:00:43]}  a5 {[%clk 0:00:18]} 39. Ne7 {[%clk 0:00:40]}  Kc5 {[%clk 0:00:16]} 40. h5 {[%clk 0:00:35]}  axb3 {[%clk 0:00:14]} 41. axb3 {[%clk 0:00:20]}  a4 {[%clk 0:00:14]} 42. hxg6 {[%clk 0:00:18]}  hxg6 {[%clk 0:00:14]} 43. Ke2 {[%clk 0:00:17]}  Rxb3 {[%clk 0:00:14]} 44. Ra1 {[%clk 0:00:17]}  a3 {[%clk 0:00:14]} 45. Kd2 {[%clk 0:00:17]}  Kxc4 {[%clk 0:00:13]} 46. Nxg6 {[%clk 0:00:17]}  Rb2+ {[%clk 0:00:13]} 47. Ke3 {[%clk 0:00:18]}  a2 {[%clk 0:00:13]} 48. Ne7 {[%clk 0:00:14]}  Rxf2 {[%clk 0:00:13]} 49. g4 {[%clk 0:00:10]}  Rf3+ {[%clk 0:00:12]} 50. Kd2 {[%clk 0:00:08]}  fxg4 {[%clk 0:00:12]} 51. Nc6 {[%clk 0:00:04]}  g3 {[%clk 0:00:10]} 52. Na5+ {[%clk 0:00:04]}  Kb4 {[%clk 0:00:10]} 53. Nc6+ {[%clk 0:00:05]}  Ka3 {[%clk 0:00:09]} 54. Nd4 {[%clk 0:00:05]}  Kb2 {[%clk 0:00:08]} 55. Rg1 {[%clk 0:00:01]}  Rf2+ {[%clk 0:00:07]} 56. Ke3 {[%clk 0:00:02]}  a1=Q {[%clk 0:00:07]} 57. Rxa1 {[%clk 0:00:01]}  Kxa1 {[%clk 0:00:07]} 58. Kxe4 {[%clk 0:00:02]}  g2 {[%clk 0:00:07]} 59. Kxd3 {[%clk 0:00:00]}  g1=Q {[%clk 0:00:07]} 0-1

[Event "January 9 Late 2024"]
[Site "https://www.chess.com"]
[Date "2024.01.09"]
[Round "5"]
[White "Tabatabaei, M. Amin"]
[Black "Liascovich, Lucas"]
[Result "1-0"]
[Board "7"]
[TimeControl "180+1"]
[WhiteFideId "12521213"]
[BlackFideId "108634"]
[WhiteElo "3097"]
[BlackElo "2929"]
[WhiteTeam "IRI"]
[BlackTeam "ARG"]
[WhiteClock "0:00:07"]
[BlackClock "0:00:01"]

1. e4 {[%clk 0:02:58]}  e5 {[%clk 0:02:59]} 2. Nf3 {[%clk 0:02:59]}  Nc6 {[%clk 0:02:58]} 3. Bc4 {[%clk 0:02:59]}  Bc5 {[%clk 0:02:58]} 4. d3 {[%clk 0:03:00]}  Nf6 {[%clk 0:02:55]} 5. Nc3 {[%clk 0:03:00]}  h6 {[%clk 0:02:54]} 6. O-O {[%clk 0:02:59]}  O-O {[%clk 0:02:53]} 7. Be3 {[%clk 0:02:59]}  d6 {[%clk 0:02:50]} 8. Bxc5 {[%clk 0:02:55]}  dxc5 {[%clk 0:02:46]} 9. Bb5 {[%clk 0:02:48]}  Nd4 {[%clk 0:02:39]} 10. Nxd4 {[%clk 0:02:45]}  cxd4 {[%clk 0:02:37]} 11. Ne2 {[%clk 0:02:46]}  Bg4 {[%clk 0:02:29]} 12. f3 {[%clk 0:02:43]}  Bd7 {[%clk 0:02:29]} 13. Bxd7 {[%clk 0:02:36]}  Qxd7 {[%clk 0:02:28]} 14. Qd2 {[%clk 0:02:37]}  c5 {[%clk 0:02:17]} 15. h3 {[%clk 0:02:37]}  Nh5 {[%clk 0:02:13]} 16. g4 {[%clk 0:02:30]}  Nf6 {[%clk 0:02:12]} 17. f4 {[%clk 0:02:31]}  exf4 {[%clk 0:02:10]} 18. Rxf4 {[%clk 0:02:32]}  Nh7 {[%clk 0:02:08]} 19. Raf1 {[%clk 0:02:31]}  Ng5 {[%clk 0:02:06]} 20. Kg2 {[%clk 0:02:31]}  Rae8 {[%clk 0:02:05]} 21. Rf5 {[%clk 0:02:29]}  Qc6 {[%clk 0:02:01]} 22. h4 {[%clk 0:02:21]}  Nxe4 {[%clk 0:01:59]} 23. dxe4 {[%clk 0:02:21]}  Qxe4+ {[%clk 0:02:00]} 24. Kf2 {[%clk 0:02:19]}  Qxg4 {[%clk 0:01:58]} 25. Rf3 {[%clk 0:02:19]}  Qxh4+ {[%clk 0:01:59]} 26. Kg2 {[%clk 0:02:12]}  Qg4+ {[%clk 0:01:55]} 27. Ng3 {[%clk 0:02:11]}  Re6 {[%clk 0:01:48]} 28. Rf4 {[%clk 0:02:00]}  Qg5 {[%clk 0:01:42]} 29. Kh2 {[%clk 0:01:45]}  Rfe8 {[%clk 0:01:37]} 30. Qg2 {[%clk 0:01:43]}  f6 {[%clk 0:01:33]} 31. Qxb7 {[%clk 0:01:42]}  Re3 {[%clk 0:01:28]} 32. Qg2 {[%clk 0:01:39]}  d3 {[%clk 0:01:22]} 33. cxd3 {[%clk 0:01:36]}  Rxd3 {[%clk 0:01:23]} 34. R1f3 {[%clk 0:01:18]}  Rxf3 {[%clk 0:01:13]} 35. Qxf3 {[%clk 0:01:19]}  Rd8 {[%clk 0:01:14]} 36. Rg4 {[%clk 0:01:12]}  Qe5 {[%clk 0:01:08]} 37. Kh3 {[%clk 0:01:07]}  c4 {[%clk 0:01:05]} 38. Rxc4 {[%clk 0:01:00]}  Qxb2 {[%clk 0:01:05]} 39. Rg4 {[%clk 0:00:52]}  Qe5 {[%clk 0:01:00]} 40. Nf5 {[%clk 0:00:46]}  Rd7 {[%clk 0:00:57]} 41. Nxh6+ {[%clk 0:00:43]}  Kf8 {[%clk 0:00:54]} 42. Nf5 {[%clk 0:00:41]}  Qd5 {[%clk 0:00:54]} 43. Qxd5 {[%clk 0:00:16]}  Rxd5 {[%clk 0:00:55]} 44. Nxg7 {[%clk 0:00:17]}  Kf7 {[%clk 0:00:54]} 45. Kh4 {[%clk 0:00:11]}  a5 {[%clk 0:00:38]} 46. Nh5 {[%clk 0:00:07]}  Rd1 {[%clk 0:00:38]} 47. Ra4 {[%clk 0:00:07]}  Rh1+ {[%clk 0:00:23]} 48. Kg4 {[%clk 0:00:07]}  Rg1+ {[%clk 0:00:19]} 49. Ng3 {[%clk 0:00:07]}  Kg6 {[%clk 0:00:11]} 50. Rxa5 {[%clk 0:00:08]}  Rb1 {[%clk 0:00:11]} 51. Ra4 {[%clk 0:00:07]}  Rb8 {[%clk 0:00:11]} 52. Kf4 {[%clk 0:00:07]}  Rb1 {[%clk 0:00:10]} 53. Ra6 {[%clk 0:00:06]}  Kf7 {[%clk 0:00:10]} 54. Ne4 {[%clk 0:00:06]}  Ke7 {[%clk 0:00:10]} 55. Ra7+ {[%clk 0:00:06]}  Ke6 {[%clk 0:00:10]} 56. Ra6+ {[%clk 0:00:07]}  Ke7 {[%clk 0:00:10]} 57. a4 {[%clk 0:00:07]}  Rf1+ {[%clk 0:00:10]} 58. Ke3 {[%clk 0:00:08]}  f5 {[%clk 0:00:11]} 59. Ng5 {[%clk 0:00:08]}  f4+ {[%clk 0:00:10]} 60. Ke4 {[%clk 0:00:08]}  Kd7 {[%clk 0:00:09]} 61. Nf3 {[%clk 0:00:08]}  Kc7 {[%clk 0:00:09]} 62. Kxf4 {[%clk 0:00:08]}  Kb7 {[%clk 0:00:10]} 63. Ra5 {[%clk 0:00:08]}  Kc6 {[%clk 0:00:10]} 64. Ke4 {[%clk 0:00:07]}  Kb6 {[%clk 0:00:09]} 65. Ra8 {[%clk 0:00:07]}  Ra1 {[%clk 0:00:08]} 66. Nd4 {[%clk 0:00:06]}  Kb7 {[%clk 0:00:09]} 67. Ra5 {[%clk 0:00:06]}  Kb6 {[%clk 0:00:09]} 68. Rb5+ {[%clk 0:00:06]}  Ka6 {[%clk 0:00:10]} 69. Rb4 {[%clk 0:00:07]}  Ka5 {[%clk 0:00:10]} 70. Nc6+ {[%clk 0:00:07]}  Ka6 {[%clk 0:00:10]} 71. Rc4 {[%clk 0:00:07]}  Re1+ {[%clk 0:00:10]} 72. Kd5 {[%clk 0:00:08]}  Rh1 {[%clk 0:00:11]} 73. Nb4+ {[%clk 0:00:06]}  Ka5 {[%clk 0:00:11]} 74. Nc6+ {[%clk 0:00:07]}  Ka6 {[%clk 0:00:11]} 75. Nd4 {[%clk 0:00:08]}  Rh5+ {[%clk 0:00:10]} 76. Ke4 {[%clk 0:00:08]}  Rh4+ {[%clk 0:00:10]} 77. Kd3 {[%clk 0:00:08]}  Rh3+ {[%clk 0:00:11]} 78. Kc2 {[%clk 0:00:08]}  Rh2+ {[%clk 0:00:11]} 79. Kb3 {[%clk 0:00:08]}  Rh3+ {[%clk 0:00:11]} 80. Kb4 {[%clk 0:00:08]}  Rh1 {[%clk 0:00:12]} 81. Rc6+ {[%clk 0:00:08]}  Ka7 {[%clk 0:00:12]} 82. Rg6 {[%clk 0:00:09]}  Rb1+ {[%clk 0:00:12]} 83. Ka5 {[%clk 0:00:09]}  Rh1 {[%clk 0:00:12]} 84. Nb5+ {[%clk 0:00:09]}  Ka8 {[%clk 0:00:12]} 85. Ka6 {[%clk 0:00:09]}  Rh8 {[%clk 0:00:13]} 86. a5 {[%clk 0:00:09]}  Rf8 {[%clk 0:00:13]} 87. Re6 {[%clk 0:00:08]}  Rd8 {[%clk 0:00:13]} 88. Kb6 {[%clk 0:00:08]}  Rb8+ {[%clk 0:00:13]} 89. Kc5 {[%clk 0:00:08]}  Rc8+ {[%clk 0:00:13]} 90. Rc6 {[%clk 0:00:08]}  Rh8 {[%clk 0:00:14]} 91. Kb6 {[%clk 0:00:08]}  Rb8+ {[%clk 0:00:14]} 92. Ka6 {[%clk 0:00:08]}  Rh8 {[%clk 0:00:13]} 93. Nc7+ {[%clk 0:00:09]}  Kb8 {[%clk 0:00:14]} 94. Nd5 {[%clk 0:00:09]}  Ka8 {[%clk 0:00:14]} 95. Kb5 {[%clk 0:00:08]}  Rb8+ {[%clk 0:00:14]} 96. Rb6 {[%clk 0:00:09]}  Rd8 {[%clk 0:00:14]} 97. Nb4 {[%clk 0:00:08]}  Rh8 {[%clk 0:00:13]} 98. Rc6 {[%clk 0:00:06]}  Rb8+ {[%clk 0:00:12]} 99. Ka4 {[%clk 0:00:07]}  Rh8 {[%clk 0:00:13]} 100. a6 {[%clk 0:00:07]}  Rh4 {[%clk 0:00:12]} 101. Ka5 {[%clk 0:00:06]}  Rh8 {[%clk 0:00:12]} 102. Nd5 {[%clk 0:00:06]}  Rh5 {[%clk 0:00:12]} 103. Kb6 {[%clk 0:00:06]}  Rh8 {[%clk 0:00:01]} 104. Nc7+ {[%clk 0:00:06]}  Kb8 {[%clk 0:00:01]} 105. a7+ {[%clk 0:00:07]} 1-0

[Event "January 9 Late 2024"]
[Site "https://www.chess.com"]
[Date "2024.01.09"]
[Round "5"]
[White "Oparin, Grigoriy"]
[Black "Christiansen, Johan-Sebastian"]
[Result "1/2-1/2"]
[Board "8"]
[TimeControl "180+1"]
[WhiteFideId "24125890"]
[BlackFideId "1512668"]
[WhiteElo "3069"]
[BlackElo "2908"]
[WhiteTeam "USA"]
[BlackTeam "NOR"]
[WhiteClock "0:00:15"]
[BlackClock "0:00:07"]

1. d4 {[%clk 0:03:00]}  Nf6 {[%clk 0:03:00]} 2. Nf3 {[%clk 0:03:01]}  c5 {[%clk 0:02:59]} 3. e3 {[%clk 0:03:00]}  g6 {[%clk 0:02:59]} 4. dxc5 {[%clk 0:02:59]}  Qa5+ {[%clk 0:02:56]} 5. c3 {[%clk 0:03:00]}  Qxc5 {[%clk 0:02:56]} 6. b4 {[%clk 0:03:00]}  Qc7 {[%clk 0:02:57]} 7. Bb2 {[%clk 0:03:01]}  Bg7 {[%clk 0:02:57]} 8. Nbd2 {[%clk 0:03:01]}  O-O {[%clk 0:02:58]} 9. Be2 {[%clk 0:03:01]}  a5 {[%clk 0:02:57]} 10. a3 {[%clk 0:02:57]}  Nc6 {[%clk 0:02:57]} 11. O-O {[%clk 0:02:57]}  d6 {[%clk 0:02:57]} 12. Rc1 {[%clk 0:02:55]}  e5 {[%clk 0:02:50]} 13. Qb3 {[%clk 0:02:29]}  Be6 {[%clk 0:02:50]} 14. c4 {[%clk 0:02:30]}  b5 {[%clk 0:02:28]} 15. Qc3 {[%clk 0:02:24]}  axb4 {[%clk 0:02:28]} 16. axb4 {[%clk 0:02:25]}  Na7 {[%clk 0:01:25]} 17. cxb5 {[%clk 0:02:05]}  Qxc3 {[%clk 0:01:16]} 18. Rxc3 {[%clk 0:02:06]}  Rab8 {[%clk 0:01:15]} 19. Ra1 {[%clk 0:01:54]}  Nxb5 {[%clk 0:01:15]} 20. Rc6 {[%clk 0:01:55]}  Nd5 {[%clk 0:01:00]} 21. Bxb5 {[%clk 0:01:39]}  Rxb5 {[%clk 0:00:52]} 22. Rxd6 {[%clk 0:01:37]}  Nxb4 {[%clk 0:00:51]} 23. Bc3 {[%clk 0:01:19]}  Rc8 {[%clk 0:00:51]} 24. Bxb4 {[%clk 0:01:04]}  Rxb4 {[%clk 0:00:52]} 25. h3 {[%clk 0:01:05]}  h6 {[%clk 0:00:51]} 26. Rd1 {[%clk 0:00:59]}  Rc2 {[%clk 0:00:47]} 27. Nf1 {[%clk 0:00:58]}  Rbb2 {[%clk 0:00:45]} 28. R6d2 {[%clk 0:00:58]}  Rxd2 {[%clk 0:00:36]} 29. N1xd2 {[%clk 0:00:59]}  Rb4 {[%clk 0:00:34]} 30. Nf1 {[%clk 0:00:56]}  e4 {[%clk 0:00:31]} 31. Nd4 {[%clk 0:00:51]}  Bxd4 {[%clk 0:00:30]} 32. exd4 {[%clk 0:00:49]}  f5 {[%clk 0:00:21]} 33. d5 {[%clk 0:00:48]}  Bd7 {[%clk 0:00:20]} 34. Ne3 {[%clk 0:00:36]}  f4 {[%clk 0:00:20]} 35. Ng4 {[%clk 0:00:37]}  Bxg4 {[%clk 0:00:15]} 36. hxg4 {[%clk 0:00:38]}  Kf7 {[%clk 0:00:16]} 37. d6 {[%clk 0:00:37]}  Ke8 {[%clk 0:00:16]} 38. d7+ {[%clk 0:00:30]}  Kd8 {[%clk 0:00:17]} 39. Kf1 {[%clk 0:00:30]}  e3 {[%clk 0:00:15]} 40. fxe3 {[%clk 0:00:18]}  fxe3 {[%clk 0:00:16]} 41. g5 {[%clk 0:00:19]}  hxg5 {[%clk 0:00:15]} 42. Rd3 {[%clk 0:00:16]}  Rb1+ {[%clk 0:00:12]} 43. Ke2 {[%clk 0:00:16]}  Rb2+ {[%clk 0:00:13]} 44. Kf3 {[%clk 0:00:13]}  e2 {[%clk 0:00:08]} 45. Kf2 {[%clk 0:00:13]}  e1=Q+ {[%clk 0:00:08]} 46. Kxe1 {[%clk 0:00:13]}  Rxg2 {[%clk 0:00:08]} 47. Rd6 {[%clk 0:00:14]}  Rg4 {[%clk 0:00:07]} 48. Kf2 {[%clk 0:00:13]}  Rf4+ {[%clk 0:00:06]} 49. Kg3 {[%clk 0:00:14]}  Rf7 {[%clk 0:00:07]} 50. Rxg6 {[%clk 0:00:13]}  Rxd7 {[%clk 0:00:07]} 51. Rxg5 {[%clk 0:00:14]}  Kc7 {[%clk 0:00:08]} 52. Rg6 {[%clk 0:00:14]}  Rd6 {[%clk 0:00:07]} 53. Rxd6 {[%clk 0:00:15]}  Kxd6 {[%clk 0:00:07]} 1/2-1/2